[Event "Titled Tuesday Blitz June 27 Early 2023"]
[White "Aldokhin, Ivan"]
[Black "Tari, Aryan"]
[WhiteFideId "24115720"]
[BlackFideId "1510045"]
[WhiteElo "2622"]
[BlackElo "2910"]
[Result "0-1"]
[Round "2"]
[TimeControl "180+2"]
[Date "2023.06.27"]
[WhiteClock "0:00:00"]
[BlackClock "0:00:56"]
[Board "33"]

1. e4 {[%clk 0:03:00]}  e5 {[%clk 0:02:59]} 2. Nf3 {[%clk 0:03:01]}  Nc6 {[%clk 0:03:00]} 3. Bb5 {[%clk 0:03:02]}  Nge7 {[%clk 0:03:00]} 4. Nc3 {[%clk 0:03:01]}  Ng6 {[%clk 0:02:59]} 5. d4 {[%clk 0:02:54]}  exd4 {[%clk 0:02:59]} 6. Nxd4 {[%clk 0:02:53]}  Nxd4 {[%clk 0:02:54]} 7. Qxd4 {[%clk 0:02:52]}  c6 {[%clk 0:02:54]} 8. Bc4 {[%clk 0:02:49]}  b5 {[%clk 0:02:55]} 9. Bb3 {[%clk 0:02:33]}  Qb6 {[%clk 0:02:32]} 10. Qd3 {[%clk 0:02:12]}  Be7 {[%clk 0:02:24]} 11. Be3 {[%clk 0:02:03]}  Qc7 {[%clk 0:02:21]} 12. O-O {[%clk 0:02:01]}  O-O {[%clk 0:02:16]} 13. f4 {[%clk 0:02:00]}  d6 {[%clk 0:02:16]} 14. a4 {[%clk 0:01:47]}  b4 {[%clk 0:02:12]} 15. Ne2 {[%clk 0:01:47]}  a5 {[%clk 0:01:50]} 16. Nd4 {[%clk 0:01:47]}  Bf6 {[%clk 0:01:42]} 17. Rad1 {[%clk 0:01:39]}  Ba6 {[%clk 0:01:36]} 18. Bc4 {[%clk 0:01:39]}  Qb7 {[%clk 0:01:36]} 19. b3 {[%clk 0:01:29]}  Bxc4 {[%clk 0:01:27]} 20. Qxc4 {[%clk 0:01:29]}  Rfe8 {[%clk 0:01:15]} 21. Nxc6 {[%clk 0:01:06]}  Qc7 {[%clk 0:01:15]} 22. Qd5 {[%clk 0:00:36]}  Rac8 {[%clk 0:01:11]} 23. Nxa5 {[%clk 0:00:17]}  Ne7 {[%clk 0:01:11]} 24. Qxd6 {[%clk 0:00:07]}  Qxa5 {[%clk 0:01:11]} 25. Bb6 {[%clk 0:00:02]}  Qa8 {[%clk 0:01:11]} 26. e5 {[%clk 0:00:02]}  Nf5 {[%clk 0:01:09]} 27. Qd7 {[%clk 0:00:03]}  Nh4 {[%clk 0:01:06]} 28. Qd5 {[%clk 0:00:02]}  Qa6 {[%clk 0:01:02]} 29. Bf2 {[%clk 0:00:02]}  Be7 {[%clk 0:01:00]} 30. Qe4 {[%clk 0:00:01]}  f5 {[%clk 0:00:56]} 31. exf6 {[%clk 0:00:01]}  Bxf6 {[%clk 0:00:57]} 32. Qd5+ {[%clk 0:00:02]}  Kh8 {[%clk 0:00:57]} 33. Qb5 {[%clk 0:00:00]}  Qa8 {[%clk 0:00:56]} 0-1


[Site "https://www.chess.com"]

[Event "Titled Tuesday Blitz June 27 Early 2023"]
[White "Henriquez Villagra, Cristobal"]
[Black "Kantor, Gergely"]
[WhiteFideId "3409350"]
[BlackFideId "751499"]
[WhiteElo "2907"]
[BlackElo "2619"]
[Result "0-1"]
[Round "2"]
[TimeControl "180+2"]
[Date "2023.06.27"]
[WhiteClock "0:00:07"]
[BlackClock "0:00:07"]
[Board "34"]

1. Nf3 {[%clk 0:02:53]}  d5 {[%clk 0:02:57]} 2. e3 {[%clk 0:02:48]}  Nf6 {[%clk 0:02:55]} 3. b3 {[%clk 0:02:38]}  c5 {[%clk 0:02:53]} 4. Bb2 {[%clk 0:02:39]}  e6 {[%clk 0:02:49]} 5. c4 {[%clk 0:02:34]}  Nc6 {[%clk 0:02:46]} 6. cxd5 {[%clk 0:02:34]}  exd5 {[%clk 0:02:43]} 7. d4 {[%clk 0:02:34]}  cxd4 {[%clk 0:02:42]} 8. Nxd4 {[%clk 0:02:32]}  Ne4 {[%clk 0:02:32]} 9. Bd3 {[%clk 0:02:23]}  Bb4+ {[%clk 0:02:31]} 10. Kf1 {[%clk 0:02:23]}  O-O {[%clk 0:02:16]} 11. a3 {[%clk 0:02:21]}  Ba5 {[%clk 0:02:10]} 12. b4 {[%clk 0:02:09]}  Bb6 {[%clk 0:02:10]} 13. Nxc6 {[%clk 0:02:10]}  bxc6 {[%clk 0:02:10]} 14. Nc3 {[%clk 0:02:10]}  Qh4 {[%clk 0:02:01]} 15. Qc2 {[%clk 0:02:05]}  f5 {[%clk 0:01:50]} 16. g3 {[%clk 0:01:50]}  Qh3+ {[%clk 0:01:45]} 17. Kg1 {[%clk 0:01:50]}  f4 {[%clk 0:00:31]} 18. Bf1 {[%clk 0:01:13]}  Qh5 {[%clk 0:00:12]} 19. Nxe4 {[%clk 0:00:27]}  fxe3 {[%clk 0:00:11]} 20. h3 {[%clk 0:00:18]}  dxe4 {[%clk 0:00:11]} 21. Bc4+ {[%clk 0:00:16]}  Kh8 {[%clk 0:00:11]} 22. Qc3 {[%clk 0:00:16]}  exf2+ {[%clk 0:00:11]} 23. Kg2 {[%clk 0:00:15]}  Qg6 {[%clk 0:00:10]} 24. Rad1 {[%clk 0:00:11]}  Bc7 {[%clk 0:00:10]} 25. Rhf1 {[%clk 0:00:07]}  Rf3 {[%clk 0:00:10]} 26. Qe5 {[%clk 0:00:08]}  Bxh3+ {[%clk 0:00:07]} 27. Kxh3 {[%clk 0:00:08]}  Bxe5 {[%clk 0:00:07]} 28. Bxe5 {[%clk 0:00:07]}  Qh5+ {[%clk 0:00:07]} 0-1


[Site "https://www.chess.com"]

[Event "Titled Tuesday Blitz June 27 Early 2023"]
[White "Chen, Justin"]
[Black "Demchenko, Anton"]
[WhiteFideId "2098199"]
[BlackFideId "4160258"]
[WhiteElo "2619"]
[BlackElo "2905"]
[Result "0-1"]
[Round "2"]
[TimeControl "180+2"]
[Date "2023.06.27"]
[WhiteClock "0:00:00"]
[BlackClock "0:00:03"]
[Board "35"]

1. e4 {[%clk 0:03:00]}  c5 {[%clk 0:02:58]} 2. Nf3 {[%clk 0:03:00]}  d6 {[%clk 0:02:58]} 3. Bb5+ {[%clk 0:02:58]}  Bd7 {[%clk 0:02:57]} 4. Bxd7+ {[%clk 0:02:57]}  Qxd7 {[%clk 0:02:57]} 5. c4 {[%clk 0:02:53]}  e5 {[%clk 0:02:57]} 6. Nc3 {[%clk 0:02:51]}  Nc6 {[%clk 0:02:57]} 7. d3 {[%clk 0:02:51]}  g6 {[%clk 0:02:57]} 8. a3 {[%clk 0:02:51]}  Bg7 {[%clk 0:02:56]} 9. Rb1 {[%clk 0:02:50]}  Nge7 {[%clk 0:02:53]} 10. b4 {[%clk 0:02:50]}  b6 {[%clk 0:02:52]} 11. O-O {[%clk 0:02:40]}  O-O {[%clk 0:02:52]} 12. Nd5 {[%clk 0:02:29]}  Nxd5 {[%clk 0:02:44]} 13. cxd5 {[%clk 0:02:19]}  Nd4 {[%clk 0:02:44]} 14. Nxd4 {[%clk 0:01:47]}  exd4 {[%clk 0:02:45]} 15. Bd2 {[%clk 0:01:43]}  f5 {[%clk 0:02:44]} 16. f3 {[%clk 0:01:40]}  fxe4 {[%clk 0:02:38]} 17. fxe4 {[%clk 0:01:40]}  Rxf1+ {[%clk 0:02:37]} 18. Qxf1 {[%clk 0:01:40]}  Be5 {[%clk 0:02:24]} 19. Qe2 {[%clk 0:00:59]}  h5 {[%clk 0:02:19]} 20. Rf1 {[%clk 0:00:58]}  Rf8 {[%clk 0:01:43]} 21. Rxf8+ {[%clk 0:00:57]}  Kxf8 {[%clk 0:01:44]} 22. Bh6+ {[%clk 0:00:42]}  Ke8 {[%clk 0:01:43]} 23. Qf3 {[%clk 0:00:38]}  Qe7 {[%clk 0:01:29]} 24. b5 {[%clk 0:00:29]}  Bf6 {[%clk 0:01:03]} 25. Bf4 {[%clk 0:00:17]}  Kd7 {[%clk 0:01:03]} 26. a4 {[%clk 0:00:17]}  Kc7 {[%clk 0:01:00]} 27. h3 {[%clk 0:00:14]}  Kd7 {[%clk 0:00:51]} 28. Qg3 {[%clk 0:00:13]}  g5 {[%clk 0:00:48]} 29. Bd2 {[%clk 0:00:13]}  Qg7 {[%clk 0:00:29]} 30. Qf3 {[%clk 0:00:12]}  Qg6 {[%clk 0:00:29]} 31. g4 {[%clk 0:00:06]}  h4 {[%clk 0:00:25]} 32. Qf5+ {[%clk 0:00:06]}  Qxf5 {[%clk 0:00:25]} 33. gxf5 {[%clk 0:00:06]}  Ke7 {[%clk 0:00:11]} 34. Kg2 {[%clk 0:00:06]}  Kf7 {[%clk 0:00:04]} 35. Kf3 {[%clk 0:00:06]}  Kg7 {[%clk 0:00:02]} 36. Kg4 {[%clk 0:00:07]}  Kf7 {[%clk 0:00:02]} 37. Be1 {[%clk 0:00:03]}  Kg7 {[%clk 0:00:01]} 38. Kh5 {[%clk 0:00:03]}  Kf7 {[%clk 0:00:01]} 39. Bd2 {[%clk 0:00:03]}  Kg7 {[%clk 0:00:02]} 40. Kg4 {[%clk 0:00:02]}  Kf7 {[%clk 0:00:02]} 41. a5 {[%clk 0:00:03]}  Kg7 {[%clk 0:00:02]} 42. a6 {[%clk 0:00:03]}  Kf7 {[%clk 0:00:02]} 43. Be1 {[%clk 0:00:03]}  Ke7 {[%clk 0:00:02]} 44. Bd2 {[%clk 0:00:04]}  Kf7 {[%clk 0:00:03]} 45. Bc1 {[%clk 0:00:04]}  Ke7 {[%clk 0:00:03]} 46. Ba3 {[%clk 0:00:05]}  Kf7 {[%clk 0:00:03]} 47. Bb2 {[%clk 0:00:05]}  Ke7 {[%clk 0:00:04]} 48. Bc1 {[%clk 0:00:06]}  Kf7 {[%clk 0:00:04]} 49. Kf3 {[%clk 0:00:07]}  Ke7 {[%clk 0:00:05]} 50. Bd2 {[%clk 0:00:08]}  Kf7 {[%clk 0:00:05]} 51. Kg4 {[%clk 0:00:08]}  Ke8 {[%clk 0:00:05]} 52. Kh5 {[%clk 0:00:08]}  Kf7 {[%clk 0:00:05]} 53. Be1 {[%clk 0:00:07]}  Kg7 {[%clk 0:00:04]} 54. Bf2 {[%clk 0:00:06]}  Kf7 {[%clk 0:00:04]} 55. Kg4 {[%clk 0:00:07]}  Kg7 {[%clk 0:00:05]} 56. Kf3 {[%clk 0:00:07]}  Kf7 {[%clk 0:00:05]} 57. Be1 {[%clk 0:00:07]}  Ke8 {[%clk 0:00:05]} 58. Bd2 {[%clk 0:00:07]}  Kf7 {[%clk 0:00:05]} 59. Kf2 {[%clk 0:00:05]}  Ke8 {[%clk 0:00:05]} 60. Kg2 {[%clk 0:00:06]}  Kf7 {[%clk 0:00:05]} 61. Kf3 {[%clk 0:00:06]}  Ke7 {[%clk 0:00:05]} 62. Ba5 {[%clk 0:00:06]}  c4 {[%clk 0:00:02]} 63. dxc4 {[%clk 0:00:02]}  d3 {[%clk 0:00:03]} 64. Bxb6 {[%clk 0:00:02]}  d2 {[%clk 0:00:02]} 65. Ke2 {[%clk 0:00:02]}  g4 {[%clk 0:00:02]} 66. Bxa7 {[%clk 0:00:01]}  gxh3 {[%clk 0:00:03]} 67. Bg1 {[%clk 0:00:02]}  Bd4 {[%clk 0:00:03]} 68. Bh2 {[%clk 0:00:01]}  Kf6 {[%clk 0:00:02]} 69. Kxd2 {[%clk 0:00:00]}  Bc5 {[%clk 0:00:03]} 0-1


[Site "https://www.chess.com"]

[Event "Titled Tuesday Blitz June 27 Early 2023"]
[White "Yurovskykh, Oleksandr"]
[Black "Ter-Sahakyan, Samvel"]
[WhiteFideId "14134020"]
[BlackFideId "13302531"]
[WhiteElo "2617"]
[BlackElo "2896"]
[Result "0-1"]
[Round "2"]
[TimeControl "180+2"]
[Date "2023.06.27"]
[WhiteClock "0:00:06"]
[BlackClock "0:00:15"]
[Board "36"]

1. b3 {[%clk 0:03:00]}  e5 {[%clk 0:02:57]} 2. Bb2 {[%clk 0:02:59]}  Nc6 {[%clk 0:02:58]} 3. e3 {[%clk 0:02:59]}  Nf6 {[%clk 0:02:53]} 4. Bb5 {[%clk 0:02:59]}  e4 {[%clk 0:02:51]} 5. d3 {[%clk 0:02:31]}  a6 {[%clk 0:02:40]} 6. Bxc6 {[%clk 0:02:30]}  dxc6 {[%clk 0:02:40]} 7. dxe4 {[%clk 0:02:27]}  Qxd1+ {[%clk 0:02:37]} 8. Kxd1 {[%clk 0:02:28]}  Nxe4 {[%clk 0:02:38]} 9. Ke2 {[%clk 0:02:25]}  f6 {[%clk 0:02:26]} 10. Nf3 {[%clk 0:02:17]}  a5 {[%clk 0:02:22]} 11. a4 {[%clk 0:02:10]}  b6 {[%clk 0:02:19]} 12. Nbd2 {[%clk 0:02:08]}  Ba6+ {[%clk 0:02:12]} 13. c4 {[%clk 0:02:08]}  Nc5 {[%clk 0:02:04]} 14. Nd4 {[%clk 0:01:56]}  O-O-O {[%clk 0:02:04]} 15. Rad1 {[%clk 0:01:45]}  Kb7 {[%clk 0:01:47]} 16. Ba3 {[%clk 0:01:36]}  Nxa4 {[%clk 0:01:40]} 17. bxa4 {[%clk 0:01:11]}  Bxa3 {[%clk 0:01:40]} 18. Nb5 {[%clk 0:00:53]}  Bb4 {[%clk 0:01:28]} 19. Nb1 {[%clk 0:00:38]}  Kb8 {[%clk 0:01:28]} 20. N5a3 {[%clk 0:00:37]}  Kc8 {[%clk 0:01:23]} 21. f3 {[%clk 0:00:36]}  Rd6 {[%clk 0:01:18]} 22. e4 {[%clk 0:00:31]}  Rhd8 {[%clk 0:01:18]} 23. Rxd6 {[%clk 0:00:32]}  cxd6 {[%clk 0:01:18]} 24. Rd1 {[%clk 0:00:32]}  d5 {[%clk 0:01:09]} 25. exd5 {[%clk 0:00:30]}  cxd5 {[%clk 0:01:10]} 26. Rc1 {[%clk 0:00:19]}  dxc4 {[%clk 0:01:03]} 27. Kf2 {[%clk 0:00:18]}  Bc5+ {[%clk 0:00:53]} 28. Kg3 {[%clk 0:00:18]}  Rd4 {[%clk 0:00:49]} 29. Nc2 {[%clk 0:00:15]}  Rd3 {[%clk 0:00:44]} 30. Ne1 {[%clk 0:00:16]}  Rb3 {[%clk 0:00:38]} 31. Nd2 {[%clk 0:00:15]}  Rb4 {[%clk 0:00:37]} 32. Ra1 {[%clk 0:00:15]}  Bd6+ {[%clk 0:00:34]} 33. Kh3 {[%clk 0:00:15]}  Kc7 {[%clk 0:00:32]} 34. Ne4 {[%clk 0:00:14]}  Be5 {[%clk 0:00:30]} 35. Ra2 {[%clk 0:00:13]}  Bc8+ {[%clk 0:00:29]} 36. g4 {[%clk 0:00:12]}  Be6 {[%clk 0:00:29]} 37. Nc2 {[%clk 0:00:10]}  Rb2 {[%clk 0:00:26]} 38. Rxb2 {[%clk 0:00:11]}  Bxb2 {[%clk 0:00:27]} 39. Kg2 {[%clk 0:00:09]}  Bd7 {[%clk 0:00:25]} 40. Ne3 {[%clk 0:00:07]}  Be6 {[%clk 0:00:22]} 41. Nc2 {[%clk 0:00:07]}  Kc6 {[%clk 0:00:22]} 42. Nd2 {[%clk 0:00:06]}  Bc3 {[%clk 0:00:20]} 43. Ne4 {[%clk 0:00:06]}  Bb2 {[%clk 0:00:20]} 44. Kf1 {[%clk 0:00:07]}  b5 {[%clk 0:00:20]} 45. axb5+ {[%clk 0:00:07]}  Kxb5 {[%clk 0:00:20]} 46. Nd2 {[%clk 0:00:06]}  a4 {[%clk 0:00:19]} 47. Nb1 {[%clk 0:00:07]}  Bf7 {[%clk 0:00:16]} 48. Ke2 {[%clk 0:00:07]}  Bg6 {[%clk 0:00:15]} 49. Nba3+ {[%clk 0:00:07]}  Bxa3 {[%clk 0:00:15]} 50. Nxa3+ {[%clk 0:00:06]}  Kb4 {[%clk 0:00:15]} 0-1


[Site "https://www.chess.com"]

[Event "Titled Tuesday Blitz June 27 Early 2023"]
[White "Makhnev, Denis"]
[Black "Elgersma, Onno"]
[WhiteFideId "13707647"]
[BlackFideId "1053531"]
[WhiteElo "2894"]
[BlackElo "2617"]
[Result "1-0"]
[Round "2"]
[TimeControl "180+2"]
[Date "2023.06.27"]
[WhiteClock "0:01:34"]
[BlackClock "0:00:01"]
[Board "37"]

1. f4 {[%clk 0:03:00]}  d5 {[%clk 0:02:58]} 2. Nf3 {[%clk 0:03:00]}  g6 {[%clk 0:02:59]} 3. g3 {[%clk 0:03:01]}  Bg7 {[%clk 0:02:59]} 4. Bg2 {[%clk 0:03:01]}  Nf6 {[%clk 0:03:00]} 5. O-O {[%clk 0:03:01]}  O-O {[%clk 0:03:00]} 6. d3 {[%clk 0:03:02]}  c5 {[%clk 0:02:50]} 7. Qe1 {[%clk 0:03:01]}  Nc6 {[%clk 0:02:46]} 8. c3 {[%clk 0:02:57]}  Bf5 {[%clk 0:02:29]} 9. h3 {[%clk 0:02:52]}  Re8 {[%clk 0:02:23]} 10. g4 {[%clk 0:02:49]}  Bd7 {[%clk 0:02:15]} 11. e4 {[%clk 0:02:48]}  dxe4 {[%clk 0:01:51]} 12. dxe4 {[%clk 0:02:49]}  e5 {[%clk 0:01:51]} 13. f5 {[%clk 0:02:49]}  gxf5 {[%clk 0:01:46]} 14. gxf5 {[%clk 0:01:53]}  Kh8 {[%clk 0:01:22]} 15. Bg5 {[%clk 0:01:52]}  Rg8 {[%clk 0:01:21]} 16. Qh4 {[%clk 0:01:47]}  Qe7 {[%clk 0:01:04]} 17. Nbd2 {[%clk 0:01:41]}  b5 {[%clk 0:00:35]} 18. Rfe1 {[%clk 0:01:41]}  c4 {[%clk 0:00:35]} 19. Kh1 {[%clk 0:01:40]}  h6 {[%clk 0:00:28]} 20. Nf1 {[%clk 0:01:40]}  Kh7 {[%clk 0:00:13]} 21. Ne3 {[%clk 0:01:35]}  Qd6 {[%clk 0:00:01]} 22. Rad1 {[%clk 0:01:34]} 1-0


[Site "https://www.chess.com"]

[Event "Titled Tuesday Blitz June 27 Early 2023"]
[White "Cezila Jr, Rubens"]
[Black "Nogerbek, Kazybek"]
[WhiteFideId "2116723"]
[BlackFideId "13710427"]
[WhiteElo "2616"]
[BlackElo "2894"]
[Result "0-1"]
[Round "2"]
[TimeControl "180+2"]
[Date "2023.06.27"]
[WhiteClock "0:00:05"]
[BlackClock "0:01:03"]
[Board "38"]

1. c4 {[%clk 0:03:00]}  g6 {[%clk 0:02:50]} 2. Nc3 {[%clk 0:03:00]}  Bg7 {[%clk 0:02:51]} 3. Nf3 {[%clk 0:02:59]}  d6 {[%clk 0:02:51]} 4. g3 {[%clk 0:03:00]}  Nc6 {[%clk 0:02:52]} 5. Bg2 {[%clk 0:03:00]}  Bd7 {[%clk 0:02:51]} 6. O-O {[%clk 0:03:01]}  Qc8 {[%clk 0:02:51]} 7. Re1 {[%clk 0:03:00]}  Bh3 {[%clk 0:02:52]} 8. Bh1 {[%clk 0:03:01]}  h5 {[%clk 0:02:52]} 9. d4 {[%clk 0:03:01]}  h4 {[%clk 0:02:53]} 10. d5 {[%clk 0:02:59]}  Ne5 {[%clk 0:02:52]} 11. Nxe5 {[%clk 0:02:59]}  Bxe5 {[%clk 0:02:53]} 12. e4 {[%clk 0:02:51]}  hxg3 {[%clk 0:02:49]} 13. fxg3 {[%clk 0:02:51]}  Nf6 {[%clk 0:02:50]} 14. Be3 {[%clk 0:02:48]}  Ng4 {[%clk 0:02:45]} 15. Re2 {[%clk 0:02:41]}  Nxe3 {[%clk 0:02:43]} 16. Rxe3 {[%clk 0:02:42]}  c5 {[%clk 0:02:44]} 17. dxc6 {[%clk 0:02:39]}  bxc6 {[%clk 0:02:45]} 18. Qd2 {[%clk 0:02:32]}  Kf8 {[%clk 0:02:41]} 19. Bg2 {[%clk 0:02:25]}  Kg7 {[%clk 0:02:35]} 20. Rf3 {[%clk 0:02:15]}  Bg4 {[%clk 0:02:31]} 21. Rff1 {[%clk 0:02:10]}  Qc7 {[%clk 0:02:25]} 22. Bf3 {[%clk 0:02:08]}  Be6 {[%clk 0:02:22]} 23. b3 {[%clk 0:02:02]}  a5 {[%clk 0:02:22]} 24. Rad1 {[%clk 0:01:57]}  Rh6 {[%clk 0:02:14]} 25. Ne2 {[%clk 0:01:43]}  Rah8 {[%clk 0:02:13]} 26. Nf4 {[%clk 0:01:37]}  Qb6+ {[%clk 0:02:09]} 27. Kh1 {[%clk 0:01:35]}  Rxh2+ {[%clk 0:01:59]} 28. Qxh2 {[%clk 0:01:34]}  Rxh2+ {[%clk 0:02:00]} 29. Kxh2 {[%clk 0:01:35]}  Bd7 {[%clk 0:02:01]} 30. Nd3 {[%clk 0:01:31]}  Bd4 {[%clk 0:01:58]} 31. e5 {[%clk 0:01:28]}  dxe5 {[%clk 0:01:42]} 32. Nxe5 {[%clk 0:01:28]}  Bxe5 {[%clk 0:01:42]} 33. Rxd7 {[%clk 0:01:28]}  Qe3 {[%clk 0:01:43]} 34. Kg2 {[%clk 0:01:15]}  c5 {[%clk 0:01:35]} 35. Rfd1 {[%clk 0:00:43]}  Qg5 {[%clk 0:01:33]} 36. g4 {[%clk 0:00:43]}  Qh4 {[%clk 0:01:33]} 37. R7d3 {[%clk 0:00:38]}  Qh2+ {[%clk 0:01:29]} 38. Kf1 {[%clk 0:00:38]}  Qxa2 {[%clk 0:01:27]} 39. Be2 {[%clk 0:00:36]}  Bd4 {[%clk 0:01:25]} 40. Rf3 {[%clk 0:00:34]}  a4 {[%clk 0:01:21]} 41. bxa4 {[%clk 0:00:34]}  Qxa4 {[%clk 0:01:22]} 42. Kg2 {[%clk 0:00:32]}  Qc2 {[%clk 0:01:20]} 43. Kf1 {[%clk 0:00:32]}  Qe4 {[%clk 0:01:20]} 44. Rdd3 {[%clk 0:00:32]}  Qe5 {[%clk 0:01:18]} 45. Rg3 {[%clk 0:00:29]}  e6 {[%clk 0:01:16]} 46. Rdf3 {[%clk 0:00:29]}  Qg5 {[%clk 0:01:16]} 47. Rd3 {[%clk 0:00:24]}  Qf4+ {[%clk 0:01:16]} 48. Rgf3 {[%clk 0:00:21]}  Qh2 {[%clk 0:01:17]} 49. Ke1 {[%clk 0:00:20]}  f6 {[%clk 0:01:14]} 50. Rf1 {[%clk 0:00:19]}  Qe5 {[%clk 0:01:12]} 51. Kd2 {[%clk 0:00:19]}  Qb8 {[%clk 0:01:09]} 52. Ke1 {[%clk 0:00:19]}  f5 {[%clk 0:01:08]} 53. gxf5 {[%clk 0:00:18]}  gxf5 {[%clk 0:01:09]} 54. Rh3 {[%clk 0:00:14]}  Qb2 {[%clk 0:01:07]} 55. Rg3+ {[%clk 0:00:13]}  Kf6 {[%clk 0:01:07]} 56. Rd3 {[%clk 0:00:11]}  Qc1+ {[%clk 0:01:04]} 57. Bd1 {[%clk 0:00:10]}  Qxc4 {[%clk 0:01:04]} 58. Ke2 {[%clk 0:00:05]}  e5 {[%clk 0:01:03]} 0-1


[Site "https://www.chess.com"]

[Event "Titled Tuesday Blitz June 27 Early 2023"]
[White "Chigaev, Maksim"]
[Black "Domingo Nunez, Alejandro"]
[WhiteFideId "4108116"]
[BlackFideId "22245561"]
[WhiteElo "2884"]
[BlackElo "2610"]
[Result "1-0"]
[Round "2"]
[TimeControl "180+2"]
[Date "2023.06.27"]
[WhiteClock "0:01:23"]
[BlackClock "0:01:02"]
[Board "39"]

1. e4 {[%clk 0:03:00]}  g6 {[%clk 0:02:59]} 2. d4 {[%clk 0:03:00]}  Bg7 {[%clk 0:03:00]} 3. Nc3 {[%clk 0:03:01]}  c6 {[%clk 0:03:01]} 4. Nf3 {[%clk 0:02:58]}  d5 {[%clk 0:03:01]} 5. h3 {[%clk 0:02:58]}  dxe4 {[%clk 0:03:02]} 6. Nxe4 {[%clk 0:02:58]}  Nf6 {[%clk 0:03:03]} 7. Nc5 {[%clk 0:02:38]}  O-O {[%clk 0:03:02]} 8. Be2 {[%clk 0:02:37]}  Nbd7 {[%clk 0:03:02]} 9. Nb3 {[%clk 0:02:37]}  Qc7 {[%clk 0:03:01]} 10. O-O {[%clk 0:02:36]}  e5 {[%clk 0:03:01]} 11. c3 {[%clk 0:02:31]}  exd4 {[%clk 0:02:41]} 12. Qxd4 {[%clk 0:02:26]}  Nd5 {[%clk 0:02:35]} 13. Qh4 {[%clk 0:02:26]}  Ne5 {[%clk 0:02:31]} 14. Bh6 {[%clk 0:02:21]}  Nxf3+ {[%clk 0:02:30]} 15. Bxf3 {[%clk 0:02:22]}  Bxh6 {[%clk 0:02:29]} 16. Qxh6 {[%clk 0:02:23]}  Qf4 {[%clk 0:02:29]} 17. Qxf4 {[%clk 0:02:23]}  Nxf4 {[%clk 0:02:30]} 18. Rad1 {[%clk 0:02:17]}  Be6 {[%clk 0:02:22]} 19. Rfe1 {[%clk 0:02:08]}  Rfd8 {[%clk 0:02:14]} 20. Nc5 {[%clk 0:01:59]}  Bxa2 {[%clk 0:02:11]} 21. Nxb7 {[%clk 0:01:40]}  Rxd1 {[%clk 0:02:10]} 22. Rxd1 {[%clk 0:01:41]}  Bd5 {[%clk 0:01:47]} 23. Bxd5 {[%clk 0:01:38]}  Nxd5 {[%clk 0:01:48]} 24. Na5 {[%clk 0:01:36]}  Ne7 {[%clk 0:01:38]} 25. Rd7 {[%clk 0:01:35]}  Kf8 {[%clk 0:01:37]} 26. g3 {[%clk 0:01:25]}  Rb8 {[%clk 0:01:02]} 27. Rxe7 {[%clk 0:01:23]} 1-0


[Site "https://www.chess.com"]

[Event "Titled Tuesday Blitz June 27 Early 2023"]
[White "Bacrot, Etienne"]
[Black "Vdovin, Vadim"]
[WhiteFideId "605506"]
[BlackFideId "24107158"]
[WhiteElo "2881"]
[BlackElo "2609"]
[Result "0-1"]
[Round "2"]
[TimeControl "180+2"]
[Date "2023.06.27"]
[WhiteClock "0:00:03"]
[BlackClock "0:00:11"]
[Board "41"]

1. e4 {[%clk 0:03:00]}  c5 {[%clk 0:02:59]} 2. Nf3 {[%clk 0:03:00]}  d6 {[%clk 0:02:53]} 3. d4 {[%clk 0:02:59]}  cxd4 {[%clk 0:02:53]} 4. Nxd4 {[%clk 0:03:00]}  Nf6 {[%clk 0:02:54]} 5. Nc3 {[%clk 0:03:00]}  a6 {[%clk 0:02:54]} 6. Rg1 {[%clk 0:03:00]}  g6 {[%clk 0:02:52]} 7. g4 {[%clk 0:02:59]}  Bg7 {[%clk 0:02:53]} 8. Be2 {[%clk 0:02:59]}  Nc6 {[%clk 0:02:52]} 9. Nb3 {[%clk 0:02:59]}  O-O {[%clk 0:02:42]} 10. Be3 {[%clk 0:02:57]}  b5 {[%clk 0:02:41]} 11. g5 {[%clk 0:02:51]}  Nd7 {[%clk 0:02:40]} 12. Qd2 {[%clk 0:02:42]}  Nb6 {[%clk 0:02:29]} 13. O-O-O {[%clk 0:02:37]}  Na4 {[%clk 0:02:24]} 14. Nd4 {[%clk 0:02:28]}  Bb7 {[%clk 0:02:02]} 15. Nxa4 {[%clk 0:02:07]}  bxa4 {[%clk 0:02:02]} 16. Nxc6 {[%clk 0:02:07]}  Bxc6 {[%clk 0:02:02]} 17. Bd4 {[%clk 0:02:08]}  Bxd4 {[%clk 0:01:29]} 18. Qxd4 {[%clk 0:02:08]}  a3 {[%clk 0:01:25]} 19. b3 {[%clk 0:02:08]}  Qa5 {[%clk 0:01:24]} 20. h4 {[%clk 0:01:54]}  Rab8 {[%clk 0:01:08]} 21. f3 {[%clk 0:01:53]}  Rfc8 {[%clk 0:00:43]} 22. Bc4 {[%clk 0:01:17]}  Bb5 {[%clk 0:00:32]} 23. Bxb5 {[%clk 0:01:00]}  Rxb5 {[%clk 0:00:28]} 24. Rg2 {[%clk 0:00:35]}  e5 {[%clk 0:00:28]} 25. Qe3 {[%clk 0:00:18]}  Rc3 {[%clk 0:00:27]} 26. Rd3 {[%clk 0:00:17]}  Rbxb3 {[%clk 0:00:21]} 27. h5 {[%clk 0:00:06]}  Rxd3 {[%clk 0:00:15]} 28. cxd3 {[%clk 0:00:07]}  Qc3+ {[%clk 0:00:13]} 29. Rc2 {[%clk 0:00:07]}  Qa1+ {[%clk 0:00:10]} 30. Kd2 {[%clk 0:00:07]}  Rb2 {[%clk 0:00:10]} 31. Qa7 {[%clk 0:00:03]}  Rxc2+ {[%clk 0:00:10]} 32. Kxc2 {[%clk 0:00:04]}  Qxa2+ {[%clk 0:00:11]} 33. Kc3 {[%clk 0:00:04]}  Qb2+ {[%clk 0:00:11]} 34. Kc4 {[%clk 0:00:05]}  Qd4+ {[%clk 0:00:10]} 35. Qxd4 {[%clk 0:00:05]}  exd4 {[%clk 0:00:11]} 36. hxg6 {[%clk 0:00:03]}  a2 {[%clk 0:00:11]} 0-1


[Site "https://www.chess.com"]